bitfinex/quotes_SOLUSD_20220128
["timestamp","ask_amount","ask_price","bid_price","bid_amount"]
[1643333747825,22.7553,89.278,89.15,16.8221]
[1643333748026,22.7553,89.278,89.16,13.28]
[1643333748835,67.29,89.276,89.161,35.78751922]
[1643333749127,6.0,89.266,89.161,35.78751922]
[1643333749327,0.25,89.265,89.161,35.78751922]
[1643333749527,19.39,89.265,89.161,35.78751922]
[1643333750327,67.29,89.264,89.13,13.28]
[1643333750527,6.0,89.254,89.13,13.28]
[1643333750731,24.8108,89.253,89.13,13.28]
[1643333750928,31.0608,89.253,89.13,13.28]
[1643333751328,3.81436681,89.252,89.131,40.47658415]
[1643333751529,6.0,89.242,89.13,13.28]
[1643333751832,179.74,89.241,89.1,13.28]
[1643333752029,179.74,89.241,89.09,13.28]
[1643333752030,67.29,89.23,89.09,13.28]
[1643333752229,67.29,89.23,89.091,3.09696646]
[1643333752430,6.0,89.22,89.091,3.09696646]
[1643333752630,6.0,89.22,89.092,41.6827898]
[1643333752631,81.63019204,89.219,89.092,41.6827898]
[1643333752833,81.88019204,89.219,89.093,3.09696646]
[1643333753030,6.0,89.209,89.093,3.09696646]
[1643333753234,0.25,89.208,89.093,3.09696646]
[1643333753831,112.45,89.208,89.093,3.09696646]
[1643333754033,6.0,89.198,89.093,3.09696646]
[1643333754231,4.66778255,89.196,89.093,3.09696646]
[1643333754633,112.2,89.185,89.093,3.09696646]
[1643333754830,0.25,89.184,89.093,3.09696646]
[1643333755031,27.05840151,89.174,89.093,3.09696646]
[1643333755431,6.0,89.164,89.093,3.09696646]
[1643333755933,0.25,89.163,89.093,3.09696646]
[1643333756130,112.45,89.163,89.093,3.09696646]
[1643333756531,6.0,89.153,89.093,3.09696646]
[1643333756733,9.83437308,89.152,89.093,3.09696646]
[1643333756932,10.08437308,89.152,89.08,13.28]
[1643333757132,6.0,89.142,89.08,13.28]
[1643333757332,0.25,89.141,89.081,3.1014901]
[1643333757935,112.45,89.141,89.081,3.1014901]
[1643333758134,6.0,89.131,89.081,3.1014901]
[1643333758335,0.25,89.13,89.075,3.1014901]
[1643333758736,26.95200141,89.134,89.075,3.1014901]
[1643333758934,26.95200141,89.134,89.08,13.28]
[1643333759135,0.25,89.133,89.081,3.1014901]
[1643333759634,6.0,89.179,89.081,3.1014901]
[1643333759834,0.25,89.178,89.081,3.1014901]
[1643333760135,32.30064875,89.169,89.081,3.1014901]
[1643333760333,0.25,89.168,89.081,3.1014901]
[1643333760534,6.0,89.159,89.081,3.1014901]
[1643333760736,112.2,89.158,89.081,3.1014901]
[1643333760937,112.2,89.158,89.052,21.23321525]
[1643333760938,0.25,89.158,89.06,13.28]
[1643333761238,0.25,89.158,89.07,13.28]
[1643333761437,0.25,89.158,89.071,46.90328144]
[1643333761634,0.25,89.158,89.071,50.00516602]
[1643333761836,0.25,89.158,89.072,3.10188458]
[1643333763135,6.0,89.159,89.072,3.10188458]
[1643333763737,6.0,89.159,89.073,0.25]
[1643333763938,6.0,89.159,89.074,3.10188458]
[1643333764136,6.0,89.159,89.073,3.35188458]
[1643333764336,6.0,89.159,89.074,3.10188458]
[1643333764937,6.0,89.159,89.072,3.10188458]
[1643333765338,0.25,89.158,89.072,3.10188458]
[1643333765937,0.25,89.158,89.08,13.28]
[1643333766139,6.25,89.158,89.08,13.28]
[1643333766541,6.25,89.158,89.128,0.00434357]
[1643333768139,6.0,89.157,89.128,0.00434357]
[1643333768340,6.0,89.148,89.128,0.00434357]
[1643333768538,0.25,89.156,89.128,0.00434357]
[1643333768740,6.0,89.157,89.128,0.00434357]
[1643333769142,6.0,89.19,89.128,0.00434357]
[1643333769543,6.0,89.189,89.128,0.00434357]
[1643333770145,22.5666,89.205,89.128,0.00434357]
[1643333770343,10.35,89.242,89.128,0.00434357]
[1643333770545,10.35,89.242,89.13,13.28]
[1643333770944,10.35,89.242,89.131,79.54503349]
[1643333771142,10.35,89.242,89.14,6.0]
[1643333771447,10.35,89.242,89.15,13.28]
[1643333771641,6.0,89.232,89.16,13.28]
[1643333771846,10.35,89.242,89.17,13.28]
[1643333772043,10.35,89.242,89.171,35.73655392]
[1643333772044,17.69467145,89.22,89.171,35.73655392]
[1643333772244,8.63884949,89.219,89.17,13.28]
[1643333772444,8.63884949,89.219,89.14,13.28]
[1643333772644,8.63884949,89.219,89.082,4.50231525]
[1643333772645,8.63884949,89.219,89.13,13.28]
[1643333773244,0.25,89.218,89.108,11.5762596]
[1643333773445,0.25,89.218,89.082,4.50231525]
[1643333773446,67.29,89.208,89.07,13.28]
[1643333773645,67.29,89.206,89.05,13.28]
[1643333773871,67.29,89.197,89.04,13.28]
[1643333774073,67.29,89.186,89.04,13.28]
[1643333774272,67.29,89.184,89.076,48.73191336]
[1643333774476,16.8488,89.17,89.04,13.28]
[1643333774678,16.8488,89.17,89.03,13.28]
[1643333774872,6.0,89.16,89.02,13.28]
[1643333775172,6.0,89.151,89.02,13.28]
[1643333775376,0.25,89.15,89.069,34.9647512]
[1643333775572,47.0398,89.15,89.069,34.9647512]
[1643333775874,0.25,89.15,89.069,34.9647512]
[1643333776074,23.223,89.172,89.07,0.25]
[1643333776272,47.3324,89.189,89.107,2.16415985]
[1643333776472,6.0,89.179,89.108,47.32247421]
[1643333776675,6.0,89.179,89.098,20.9466733]
[1643333776872,10.62411875,89.19,89.07,13.28]
[1643333777074,6.0,89.18,89.06,13.28]
[1643333777272,46.8913,89.179,89.061,0.25]
[1643333777471,47.1413,89.179,89.061,0.25]
[1643333777671,6.0,89.169,89.061,0.25]
[1643333777873,0.25,89.168,89.08,13.28]
[1643333778071,6.0,89.169,89.092,2.16696459]
[1643333778273,6.0,89.169,89.11,13.28]
[1643333778472,6.0,89.188,89.111,33.40742919]
[1643333778672,6.0,89.188,89.12,13.28]
[1643333778874,6.0,89.185,89.12,13.28]
[1643333779072,27.18622123,89.195,89.12,13.28]
[1643333779276,46.5618,89.208,89.12,13.28]
[1643333779473,46.5618,89.208,89.111,33.40742919]
[1643333779672,46.5618,89.208,89.13,13.28]
[1643333780275,26.96948133,89.207,89.131,38.69036918]
[1643333780675,6.0,89.197,89.131,38.69036918]
[1643333780876,77.2367,89.229,89.131,38.69036918]
[1643333781078,72.4039,89.253,89.132,0.25]
[1643333781275,72.4039,89.253,89.132,114.61696459]
[1643333781476,78.644,89.274,89.133,23.11363789]
[1643333781677,78.644,89.274,89.133,54.81228691]
[1643333781882,32.33687322,89.25,89.134,135.56363789]
[1643333782078,32.33687322,89.25,89.134,147.9722586]
[1643333782280,32.33687322,89.25,89.14,16.8229]
[1643333782479,32.33687322,89.25,89.15,13.28]
[1643333782690,32.33687322,89.25,89.152,112.2]
[1643333782887,32.33687322,89.25,89.151,38.14274631]
[1643333783088,32.33687322,89.25,89.151,50.55136702]
[1643333783289,32.33687322,89.25,89.152,12.40862071]
[1643333783489,112.2,89.268,89.152,12.40862071]
[1643333783889,101.18653019,89.301,89.152,12.40862071]
[1643333784088,30.30103019,89.3,89.152,33.35529401]
[1643333784288,30.30103019,89.3,89.153,2.16696459]
[1643333784498,34.94066386,89.243,89.153,2.16696459]
[1643333784889,34.94066386,89.243,89.153,12.40862071]
[1643333785093,6.0,89.232,89.084,4.50231525]
[1643333785290,6.0,89.232,89.081,40.4325]
[1643333785491,6.0,89.231,89.09,13.28]
[1643333785690,6.25,89.231,89.1,13.28]
[1643333785892,6.25,89.231,89.12,13.28]
[1643333786091,0.25,89.231,89.121,112.2]
[1643333786292,0.25,89.231,89.129,2.16696459]
[1643333786493,0.25,89.231,89.13,38.00689216]
[1643333786693,0.25,89.231,89.14,13.28]
[1643333786895,0.25,89.24,89.141,0.25]
[1643333787096,30.0169513,89.241,89.141,0.25]
[1643333787295,69.1231,89.257,89.141,2.41672308]
[1643333787496,69.1231,89.257,89.142,12.19325308]
[1643333787895,69.1231,89.257,89.143,0.25]
[1643333788295,32.62703609,89.241,89.143,0.25]
[1643333788697,0.25,89.24,89.143,0.25]
[1643333789000,79.2704,89.3,89.143,0.25]
[1643333789001,30.30103019,89.276,89.15,6.0]
[1643333789196,30.30103019,89.276,89.16,13.28]
[1643333789396,22.84172124,89.289,89.161,0.25]
[1643333789600,22.84172124,89.289,89.17,6.0]
[1643333789798,30.54589874,89.288,89.18,13.28]
[1643333790296,103.8412,89.3,89.181,12.45249752]
[1643333790498,52.19472163,89.357,89.191,118.2]
[1643333790698,4.56812163,89.357,89.2,13.28]
[1643333790897,4.56812163,89.385,89.201,0.25]
[1643333791097,22.86904862,89.356,89.21,6.0]
[1643333791297,33.79842762,89.355,89.22,13.28]
[1643333791500,33.79842762,89.355,89.24,165.99]
[1643333791501,30.70236238,89.355,89.24,165.99]
[1643333791699,30.70236238,89.355,89.25,13.28]
[1643333791998,30.70236238,89.355,89.251,38.25689216]
[1643333792202,30.70236238,89.355,89.251,71.03846307]
[1643333792399,22.8476721,89.354,89.251,71.03846307]
[1643333792607,22.8476721,89.354,89.251,50.45938968]
[1643333792800,22.8476721,89.354,89.252,31.13561526]
[1643333792999,22.8476721,89.354,89.262,6.0]
[1643333793200,30.70236238,89.355,89.27,13.28]
[1643333793399,30.70236238,89.355,89.271,44.53033325]
[1643333793602,30.70236238,89.355,89.281,6.0]
[1643333793800,30.70236238,89.355,89.29,13.28]
[1643333794004,30.70236238,89.355,89.291,36.50584896]
[1643333794203,30.70236238,89.355,89.291,36.75584896]
[1643333794403,30.70236238,89.355,89.29,13.28]
[1643333794603,0.25,89.354,89.29,13.28]
[1643333794806,0.25,89.354,89.281,6.0]
[1643333795003,0.25,89.354,89.27,13.28]
[1643333795204,0.25,89.354,89.271,0.25]
[1643333795402,0.25,89.354,89.271,45.61534693]
[1643333795805,30.70236238,89.355,89.271,45.61534693]
[1643333796003,30.70236238,89.355,89.271,66.19442032]
[1643333796205,30.70236238,89.355,89.271,78.39691784]
[1643333796406,146.2137,89.392,89.272,131.13311774]
[1643333796604,77.1001,89.392,89.282,6.0]
[1643333796805,171.0971,89.454,89.29,13.28]
[1643333797007,6.0,89.444,89.3,22.7927]
[1643333797204,6.0,89.444,89.31,13.28]
[1643333797407,26.71734488,89.439,89.311,37.17187848]
[1643333797606,26.71734488,89.439,89.321,6.0]
[1643333797806,26.71734488,89.439,89.33,13.28]
[1643333798007,26.71734488,89.439,89.34,6.0]
[1643333798207,148.7548,89.454,89.35,13.28]
[1643333798208,23.5806,89.454,89.35,13.28]
[1643333798406,45.2339,89.498,89.351,0.25]
[1643333798606,45.2339,89.498,89.36,6.0]
[1643333798816,45.2339,89.498,89.37,13.28]
[1643333799007,17.34017224,89.497,89.38,6.0]
[1643333799206,28.02781953,89.496,89.39,13.28]
[1643333799407,28.02781953,89.496,89.391,0.25]
[1643333799606,28.02781953,89.496,89.401,112.2]
[1643333799909,3.05308722,89.552,89.41,13.28]
[1643333800126,70.9405,89.551,89.42,6.0]
[1643333800324,19.82819354,89.55,89.43,13.28]
[1643333800525,3.05289354,89.549,89.43,13.28]
[1643333800827,32.4837228,89.548,89.431,41.62368207]
[1643333801127,52.74381267,89.548,89.431,41.62368207]
[1643333801324,17.30339845,89.547,89.431,41.62368207]
[1643333801524,6.0,89.537,89.431,41.62368207]
[1643333801725,6.0,89.537,89.432,0.25]
[1643333801926,0.25,89.536,89.432,0.25]
[1643333802324,6.0,89.538,89.432,0.25]
[1643333802629,55.9049,89.6,89.434,112.2]
[1643333802824,3.05308722,89.605,89.433,37.59252446]
[1643333802825,3.05308722,89.618,89.442,112.2]
[1643333803025,3.03422141,89.636,89.452,6.0]
[1643333803229,71.628,89.649,89.461,112.2]
[1643333803528,11.63610066,89.67,89.5,165.99]
[1643333803730,26.72869888,89.651,89.51,13.28]
[1643333803932,26.72869888,89.651,89.55,165.99]
[1643333804130,3.935371,89.728,89.561,39.927365]
[1643333804333,3.935371,89.728,89.57,16.7422]
[1643333804630,3.935371,89.728,89.58,19.28]
[1643333804631,13.59005052,89.727,89.58,19.28]
[1643333804831,13.59005052,89.727,89.59,13.28]
[1643333805030,13.59005052,89.727,89.6,6.0]
[1643333805231,37.21558275,89.726,89.61,13.28]
[1643333806031,2.95669142,89.725,89.611,0.25]
[1643333806230,6.0,89.716,89.61,13.28]
[1643333806433,6.0,89.715,89.611,0.25]
[1643333806632,6.0,89.716,89.61,13.28]
[1643333807233,2.95669142,89.715,89.59,13.28]
[1643333807435,2.95669142,89.715,89.53,165.99]
[1643333807633,6.0,89.705,89.54,13.28]
[1643333807836,2.63388326,89.703,89.55,13.28]
[1643333808033,16.7504,89.69,89.561,40.70731813]
[1643333808333,31.96395203,89.689,89.57,13.28]
[1643333808533,6.0,89.679,89.581,41.57990728]
[1643333808733,6.0,89.679,89.59,13.28]
[1643333809034,6.0,89.679,89.591,0.25]
[1643333809234,6.0,89.679,89.591,21.32596228]
[1643333809433,31.96395203,89.689,89.592,32.01128178]
[1643333809633,31.96395203,89.689,89.603,35.14170363]
[1643333809834,31.96395203,89.689,89.61,13.28]
[1643333810235,31.96395203,89.689,89.611,0.25]
[1643333810439,31.96395203,89.689,89.61,13.28]
[1643333810635,31.96395203,89.689,89.611,0.25]
[1643333810834,0.25,89.688,89.611,0.25]
[1643333811234,0.25,89.688,89.611,21.32596228]
[1643333811836,0.25,89.688,89.612,12.89052675]
[1643333812136,0.25,89.688,89.613,21.07596228]
[1643333812336,0.25,89.688,89.613,21.32596228]
[1643333812537,0.25,89.688,89.614,12.89052675]
[1643333812739,0.25,89.688,89.614,53.08724406]
[1643333813140,0.25,89.688,89.61,13.28]
[1643333813342,6.0,89.679,89.61,13.28]
[1643333813538,6.0,89.679,89.578,21.07596228]
[1643333813739,3.20669142,89.678,89.55,13.28]
[1643333813938,4.92882256,89.675,89.552,42.64562936]
[1643333814139,6.0,89.665,89.55,13.28]
[1643333814340,112.2,89.649,89.55,13.28]
[1643333814639,112.2,89.638,89.54,13.28]
[1643333814840,0.25,89.637,89.54,13.28]
[1643333815039,6.0,89.628,89.54,13.28]
[1643333815241,27.97844633,89.627,89.55,45.02749071]
[1643333815641,6.0,89.617,89.55,45.02749071]
[1643333815842,0.25,89.616,89.55,58.30749071]
[1643333816241,0.25,89.616,89.55,13.28]
[1643333817342,6.0,89.617,89.55,13.28]
[1643333817841,6.0,89.617,89.548,20.93874006]
[1643333818543,6.0,89.617,89.549,19.12075503]
[1643333818741,0.25,89.72,89.56,13.28]
[1643333818941,16.9539,89.747,89.56,13.28]
[1643333819142,6.0,89.689,89.561,40.26918064]
[1643333819342,6.0,89.689,89.561,52.36526295]
[1643333819544,6.0,89.689,89.562,40.01918064]
[1643333819743,27.20434574,89.688,89.563,39.61687685]
[1643333819944,27.20434574,89.688,89.563,91.9821398]
[1643333820147,6.0,89.678,89.564,52.11526295]
[1643333820344,6.0,89.678,89.565,0.25]
[1643333820546,6.0,89.678,89.565,52.36526295]
[1643333820845,6.0,89.678,89.566,33.28482237]
[1643333821145,7.20842885,89.673,89.58,13.28]
[1643333821344,0.25,89.672,89.581,0.25]
[1643333821547,6.0,89.663,89.58,13.28]
[1643333821747,0.25,89.662,89.58,13.28]
[1643333822146,6.0,89.663,89.581,0.25]
[1643333822347,0.25,89.662,89.581,40.26918064]
[1643333822546,0.25,89.662,89.582,19.08044058]
[1643333823155,0.25,89.662,89.58,13.28]
[1643333823549,0.25,89.662,89.561,19.08044058]
[1643333823947,0.25,89.662,89.562,41.38299017]
[1643333824249,0.25,89.662,89.563,0.25]
[1643333824447,0.25,89.662,89.563,19.33044058]
[1643333824647,6.0,89.663,89.564,31.17652289]
[1643333824847,6.0,89.663,89.565,0.25]
[1643333825048,6.0,89.663,89.565,51.82637406]
[1643333825247,6.0,89.663,89.566,19.08044058]
[1643333825447,112.2,89.649,89.544,12.09608231]
[1643333825652,112.2,89.649,89.394,52.34214102]
[1643333825653,112.2,89.649,89.432,111.9]
[1643333825849,112.2,89.638,89.46,13.28]
[1643333826048,6.0,89.628,89.46,13.28]
[1643333826348,25.20254368,89.626,89.462,38.68991275]
[1643333826548,6.0,89.616,89.463,112.2]
[1643333826747,0.25,89.615,89.464,0.25]
[1643333826949,135.2792,89.615,89.464,19.41359777]
[1643333827152,135.2792,89.615,89.465,16.11207543]
[1643333827350,6.0,89.605,89.481,39.7881406]
[1643333827550,9.21023091,89.604,89.482,112.2]
[1643333827750,9.46023091,89.604,89.482,112.45]
[1643333827952,112.2,89.593,89.482,131.61359777]
[1643333828157,112.2,89.593,89.483,19.16359777]
[1643333828452,25.20254368,89.582,89.484,112.45]
[1643333828852,6.0,89.572,89.485,19.16359777]
[1643333829050,6.0,89.572,89.486,112.2]
[1643333829250,22.6044,89.636,89.501,112.2]
[1643333829451,3.05308722,89.651,89.501,112.2]
[1643333829652,3.05308722,89.651,89.503,112.2]
[1643333829852,6.0,89.641,89.504,0.25]
[1643333830053,6.0,89.65,89.52,165.99]
[1643333830251,32.34308821,89.649,89.531,112.2]
[1643333830653,32.34308821,89.649,89.541,46.90757887]
[1643333830856,32.34308821,89.649,89.551,112.2]
[1643333831252,32.34308821,89.649,89.552,11.47367715]
[1643333831653,32.34308821,89.649,89.553,11.22367715]
[1643333831855,32.34308821,89.649,89.555,35.40615948]
[1643333832054,3.09056359,89.648,89.57,13.28]
[1643333832252,3.09056359,89.648,89.571,112.45]
[1643333832453,3.05308722,89.657,89.571,112.45]
[1643333832654,3.05308722,89.657,89.572,19.16359777]
[1643333832953,3.05308722,89.657,89.573,49.61106593]
[1643333833154,3.05308722,89.657,89.574,112.2]
[1643333833357,3.05308722,89.677,89.58,16.7405]
[1643333833558,3.05308722,89.681,89.59,13.28]
[1643333833867,3.05308722,89.681,89.591,0.25]
[1643333834055,3.05308722,89.683,89.592,35.40615948]
[1643333834255,30.72447281,89.682,89.593,112.45]
[1643333834458,3.09056359,89.681,89.593,131.61359777]
[1643333834655,3.09056359,89.681,89.593,142.83727492]
[1643333834857,3.05308722,89.686,89.595,112.2]
[1643333835057,2.55308722,89.695,89.595,112.2]
[1643333835256,3.08855555,89.72,89.597,112.2]
[1643333835557,6.0,89.71,89.61,13.28]
[1643333835757,3.08855555,89.709,89.611,43.38105709]
[1643333835958,3.08855555,89.709,89.612,112.2]
[1643333836158,6.0,89.699,89.612,131.36359777]
[1643333836358,3.08855555,89.698,89.613,0.25]
[1643333836559,6.0,89.688,89.614,112.2]
[1643333836858,6.0,89.688,89.615,0.25]
[1643333837061,4.56812163,89.73,89.62,16.7329]
[1643333837259,22.6754,89.748,89.631,112.2]
[1643333837459,22.6754,89.748,89.64,13.28]
[1643333837659,22.6754,89.748,89.641,112.2]
[1643333837860,22.6754,89.748,89.641,112.45]
[1643333838161,32.92903739,89.747,89.643,112.2]
[1643333838359,32.92903739,89.747,89.644,0.25]
[1643333838562,6.0,89.737,89.644,27.44359777]
[1643333838758,6.0,89.737,89.645,123.42367715]
[1643333838959,6.0,89.737,89.645,142.58727492]
[1643333839159,6.0,89.737,89.645,19.16359777]
[1643333839359,6.0,89.737,89.64,13.28]
[1643333840062,0.25,89.736,89.64,13.28]
[1643333840261,6.0,89.737,89.64,13.28]
[1643333840760,6.0,89.737,89.641,2.17546762]
[1643333840959,6.0,89.736,89.641,30.8112202]
[1643333841162,6.0,89.737,89.642,47.72139529]
[1643333841386,6.0,89.737,89.65,16.7273]
[1643333841688,6.0,89.737,89.661,37.04583012]
[1643333842087,6.0,89.737,89.66,13.28]
[1643333842286,6.0,89.737,89.662,2.17546762]
[1643333842485,6.0,89.737,89.66,13.28]
[1643333842686,0.25,89.736,89.66,13.28]
[1643333843589,112.45,89.736,89.66,13.28]
[1643333844188,6.0,89.726,89.63,13.28]
[1643333844388,0.25,89.725,89.61,13.28]
[1643333844587,1.7337372,89.725,89.62,43.78272764]
[1643333844788,113.9337372,89.725,89.6,19.16359777]
[1643333844989,6.0,89.715,89.6,19.16359777]
[1643333845188,6.0,89.715,89.582,19.16359777]
[1643333845390,6.25,89.714,89.582,19.16359777]
[1643333845787,6.25,89.714,89.583,37.24001689]
[1643333845989,6.0,89.711,89.583,37.24001689]
[1643333846188,32.92903739,89.71,89.583,37.24001689]
[1643333846390,6.0,89.704,89.583,56.40361466]
[1643333846592,6.0,89.7,89.584,0.25]
[1643333846790,0.25,89.699,89.584,0.25]
[1643333846991,112.45,89.699,89.585,19.16359777]
[1643333847390,1.4837372,89.687,89.585,19.16359777]
[1643333847590,112.2,89.676,89.585,19.16359777]
[1643333847793,0.25,89.675,89.585,19.16359777]
[1643333847995,25.22650165,89.665,89.585,19.16359777]
[1643333848494,6.0,89.655,89.585,19.16359777]
[1643333848692,112.2,89.654,89.58,13.28]
[1643333848895,112.45,89.654,89.58,13.28]
[1643333849092,6.0,89.644,89.56,13.28]
[1643333849293,0.25,89.643,89.56,13.28]
[1643333849492,6.0,89.64,89.56,13.28]
[1643333849694,112.2,89.639,89.56,13.28]
[1643333850093,6.0,89.629,89.56,13.28]
[1643333850693,25.22650165,89.628,89.561,0.25]
[1643333851093,6.0,89.618,89.561,0.25]
[1643333851295,6.0,89.618,89.56,13.28]
[1643333851894,25.22650165,89.628,89.56,32.44359777]
[1643333852095,25.22650165,89.628,89.561,47.46198632]
[1643333852293,25.22650165,89.628,89.562,0.25]
[1643333852592,25.22650165,89.628,89.562,19.41359777]
[1643333852792,25.22650165,89.628,89.563,19.16359777]
[1643333853294,25.22650165,89.628,89.564,0.25]
[1643333853693,25.22650165,89.628,89.565,19.16359777]
[1643333853892,25.22650165,89.628,89.542,17.41207543]
[1643333854096,6.0,89.618,89.53,13.28]
[1643333854694,0.25,89.617,89.538,47.43871055]
[1643333854896,6.0,89.618,89.538,47.43871055]
[1643333855095,6.0,89.618,89.54,13.28]
[1643333855296,4.56812163,89.692,89.541,0.25]
[1643333855495,6.0,89.682,89.541,17.66207543]
[1643333855694,6.0,89.682,89.57,16.7431]
[1643333855895,6.0,89.687,89.58,13.28]
[1643333856096,6.0,89.688,89.59,13.28]
[1643333856294,33.17864876,89.686,89.591,0.25]
[1643333856495,6.0,89.676,89.59,13.28]
[1643333857396,6.0,89.676,89.591,0.25]
[1643333857596,0.25,89.675,89.591,0.25]
[1643333857796,1.53970886,89.66,89.591,0.25]
[1643333857996,1.53970886,89.653,89.591,0.25]
[1643333858395,0.25,89.652,89.591,0.25]
[1643333858597,3.02383469,89.652,89.591,0.25]
[1643333858896,2.77383469,89.652,89.591,0.25]
[1643333859195,1.23412583,89.652,89.591,0.25]
[1643333860200,2.77383469,89.652,89.591,47.43589891]
[1643333860401,1.53970886,89.66,89.591,47.43589891]
[1643333860598,1.53970886,89.666,89.6,16.7365]
[1643333860800,1.53970886,89.675,89.61,13.28]
[1643333860999,1.53970886,89.677,89.61,13.28]
[1643333861202,1.53970886,89.677,89.611,0.25]
[1643333861398,28.84585703,89.676,89.611,48.7713265]
[1643333862200,28.84585703,89.676,89.612,129.61207543]
[1643333862401,28.84585703,89.676,89.613,0.25]
[1643333863503,1.53970886,89.674,89.613,0.25]
[1643333863705,30.38556589,89.676,89.613,0.25]
[1643333863903,28.84585703,89.676,89.613,0.25]
[1643333864106,1.53970886,89.679,89.613,0.25]
[1643333864306,1.53970886,89.682,89.613,0.25]
[1643333864509,1.53970886,89.682,89.62,16.7318]
[1643333864708,1.53970886,89.688,89.63,13.28]
[1643333864909,33.08821345,89.75,89.631,0.25]
[1643333865108,4.56812163,89.755,89.631,169.49733612]
[1643333865109,26.08857455,89.738,89.631,169.49733612]
[1643333865310,26.08857455,89.738,89.632,9.71899938]
[1643333865507,13.89009075,89.737,89.633,112.2]
[1643333865707,13.89009075,89.737,89.633,129.86207543]
[1643333865908,13.89009075,89.737,89.634,27.13107481]
[1643333866107,13.89009075,89.737,89.634,44.35249567]
[1643333866306,26.08857455,89.738,89.64,16.7286]
[1643333866507,26.08857455,89.738,89.652,40.62925627]
[1643333866709,6.0,89.739,89.653,112.2]
[1643333866907,4.56812163,89.775,89.653,129.86207543]
[1643333867111,4.56812163,89.775,89.653,156.80249567]
[1643333867306,4.56812163,89.794,89.654,44.35249567]
[1643333867531,13.89817658,89.774,89.654,44.35249567]
[1643333867706,26.3518655,89.773,89.655,44.60249567]
[1643333867906,26.3518655,89.773,89.67,16.7236]
[1643333868109,26.3518655,89.773,89.671,38.0797695]
[1643333868408,26.3518655,89.773,89.671,82.68226517]
[1643333868708,26.3518655,89.773,89.672,156.55249567]
[1643333869107,4.56812163,89.807,89.7,16.7188]
[1643333869307,4.56812163,89.819,89.71,13.28]
[1643333869508,4.56812163,89.819,89.72,13.28]
[1643333869509,6.0,89.809,89.72,13.28]
[1643333869709,6.0,89.809,89.73,13.28]
[1643333869909,6.0,89.809,89.731,112.2]
[1643333870109,30.53720846,89.808,89.732,46.68745591]
[1643333870309,6.0,89.809,89.733,0.25]
[1643333870510,6.0,89.809,89.733,112.45]
[1643333870709,4.56812163,89.838,89.733,112.45]
[1643333870908,50.99782163,89.848,89.733,122.16899938]
[1643333871310,50.99782163,89.848,89.74,16.7105]
[1643333871311,32.83907792,89.847,89.74,16.7105]
[1643333871509,32.83907792,89.847,89.75,68.9638]
[1643333871708,32.83907792,89.847,89.751,38.0797695]
[1643333871909,32.83907792,89.847,89.751,77.60905641]
[1643333872311,32.83907792,89.847,89.752,27.01928691]
[1643333872709,32.83907792,89.847,89.753,17.55028753]
[1643333873113,6.0,89.837,89.754,17.30028753]
[1643333873310,6.0,89.837,89.76,16.705]
[1643333873610,6.0,89.837,89.77,13.28]
[1643333873811,6.0,89.837,89.771,37.57562268]
[1643333874011,6.0,89.837,89.772,112.2]
[1643333874311,6.0,89.837,89.773,0.25]
[1643333874516,6.0,89.837,89.771,37.32562268]
[1643333876113,0.25,89.836,89.77,13.28]
[1643333876311,0.25,89.836,89.77,7.27515512]